bitfinex/quotes_BTCUSD_20240715
["timestamp","ask_amount","ask_price","bid_price","bid_amount"]
[1721063570412,0.10356353,63767.0,63766.0,0.0001]
[1721063571588,0.101,63767.0,63766.0,0.156923]
[1721063571769,0.001,63767.0,63766.0,0.156923]
[1721063571973,0.001,63767.0,63766.0,0.470569]
[1721063572594,0.001,63767.0,63766.0,0.156923]
[1721063572956,0.001,63767.0,63766.0,0.470569]
[1721063573161,0.00339353,63774.0,63773.0,0.156806]
[1721063573567,0.00083,63774.0,63771.0,0.15681]
[1721063573874,0.00256353,63773.0,63771.0,0.15681]
[1721063574123,0.00256353,63773.0,63770.0,0.373426]
[1721063574321,0.00256353,63773.0,63770.0,0.313626]
[1721063574822,0.00256353,63773.0,63767.0,0.313639]
[1721063575297,0.00256353,63773.0,63768.0,0.0598]
[1721063575430,0.00256353,63773.0,63771.0,0.15681]
[1721063575632,0.00256353,63773.0,63770.0,0.156813]
[1721063576388,0.00856353,63773.0,63771.0,0.001]
[1721063576720,0.00856353,63773.0,63769.0,0.313629]
[1721063576721,0.00256353,63773.0,63772.0,0.530225]
[1721063576948,0.00083,63774.0,63773.0,0.84383]
[1721063577160,0.00083,63774.0,63773.0,1.157442]
[1721063577364,0.00083,63774.0,63773.0,0.78403]
[1721063578006,0.00083,63774.0,63773.0,0.470418]
[1721063578188,0.00083,63774.0,63773.0,0.156806]
[1721063578823,0.0003,63772.0,63771.0,0.001]
[1721063579031,0.00286353,63772.0,63771.0,0.001]
[1721063579553,0.00286353,63772.0,63766.0,0.0001]
[1721063579554,0.00256353,63772.0,63766.0,0.0001]
[1721063579799,0.00256353,63772.0,63766.0,0.156923]
[1721063580005,0.00256353,63772.0,63767.0,0.15682]
[1721063580439,0.00256353,63772.0,63766.0,0.0001]
[1721063580571,0.00256353,63772.0,63771.0,0.002]
[1721063580770,0.00256353,63772.0,63766.0,0.0001]
[1721063581155,0.00256353,63772.0,63766.0,0.0021]
[1721063581382,0.00256353,63772.0,63766.0,0.0001]
[1721063581587,0.00256353,63772.0,63766.0,0.156922]
[1721063581789,0.00256353,63772.0,63766.0,0.151922]
[1721063582213,0.00256353,63772.0,63766.0,0.0598]
[1721063582415,0.00256353,63772.0,63771.0,0.156811]
[1721063582688,0.10083,63774.0,63771.0,0.156811]
[1721063582689,0.00256353,63773.0,63772.0,0.470425]
[1721063582871,0.00256353,63773.0,63772.0,0.156808]
[1721063583123,0.00083,63774.0,63773.0,0.156806]
[1721063583661,0.00083,63774.0,63773.0,0.84383]
[1721063584064,0.00083,63774.0,63773.0,0.470418]
[1721063584956,0.00083,63774.0,63768.0,0.156816]
[1721063585199,0.00256353,63773.0,63768.0,0.156816]
[1721063585585,0.00083,63774.0,63768.0,0.156816]
[1721063585787,0.00083,63774.0,63767.0,0.313638]
[1721063585788,0.0657,63772.0,63765.0,0.313647]
[1721063585990,0.0003,63770.0,63765.0,0.313647]
[1721063586341,0.0657,63772.0,63765.0,0.156824]
[1721063586342,0.00246353,63769.0,63765.0,0.156824]
[1721063586548,0.00246353,63769.0,63761.0,0.313667]
[1721063586747,0.00246353,63769.0,63760.0,0.313671]
[1721063586934,0.00246353,63769.0,63762.0,0.313665]
[1721063587135,0.00246353,63769.0,63764.0,0.313656]
[1721063587336,0.00246353,63769.0,63766.0,0.156823]
[1721063587732,0.00246353,63769.0,63766.0,0.1530561]
[1721063587913,0.00246353,63771.0,63766.0,0.1530561]
[1721063588312,0.00246353,63771.0,63764.0,0.156827]
[1721063588537,0.00236353,63771.0,63764.0,0.156827]
[1721063588912,0.00236353,63771.0,63762.0,0.313665]
[1721063588913,0.00236353,63771.0,63765.0,0.156825]
[1721063589523,0.00236353,63771.0,63766.0,0.006]
[1721063589725,0.00236353,63771.0,63765.0,0.156825]
[1721063590113,0.00236353,63771.0,63765.0,0.159825]
[1721063590370,0.00236353,63771.0,63765.0,0.156825]
[1721063590534,0.00236353,63771.0,63761.0,0.156835]
[1721063590535,0.0003,63768.0,63761.0,0.156835]
[1721063590740,0.44806353,63767.0,63766.0,0.003]
[1721063591015,0.77279635,63767.0,63766.0,0.003]
[1721063591217,0.77279635,63767.0,63747.0,0.313737]
[1721063591218,0.062,63754.0,63747.0,0.313737]
[1721063591425,0.062,63754.0,63748.0,0.156866]
[1721063591626,0.062,63754.0,63744.0,0.137813]
[1721063591627,0.0003,63751.0,63744.0,0.000913]
[1721063591850,0.227,63749.0,63744.0,0.000913]
[1721063592068,0.023,63748.0,63744.0,0.000913]
[1721063592885,0.2271,63749.0,63744.0,0.000913]
[1721063593015,0.023,63748.0,63744.0,0.000913]
[1721063593591,0.023,63748.0,63744.0,0.004913]
[1721063594129,0.0229,63748.0,63744.0,0.004913]
[1721063594335,0.0228,63748.0,63744.0,0.004913]
[1721063594540,0.14145238,63745.0,63744.0,0.004913]
[1721063594745,0.14145238,63745.0,63734.0,0.000913]
[1721063594746,0.0003,63743.0,63734.0,0.000913]
[1721063594944,0.2271,63735.0,63734.0,0.000913]
[1721063596405,0.2281,63735.0,63734.0,0.013913]
[1721063596605,0.227,63735.0,63734.0,0.000913]
[1721063597353,0.227,63735.0,63734.0,0.006913]
[1721063597481,0.227,63735.0,63734.0,0.000913]
[1721063597914,0.227,63735.0,63734.0,0.006913]
[1721063599300,0.227,63735.0,63734.0,0.000913]
[1721063599472,0.327,63735.0,63734.0,0.005913]
[1721063599905,0.493,63735.0,63734.0,0.000913]
[1721063600105,0.4933,63735.0,63734.0,0.000913]
[1721063600317,0.493,63735.0,63734.0,0.005913]
[1721063600508,0.4933,63735.0,63734.0,0.005913]
[1721063600716,0.4933,63735.0,63734.0,0.010913]
[1721063600914,0.4933,63735.0,63734.0,0.011013]
[1721063601132,0.4933,63735.0,63734.0,0.001013]
[1721063601538,0.493,63735.0,63734.0,0.001013]
[1721063601743,0.35,63735.0,63734.0,0.001013]
[1721063601948,0.327,63735.0,63734.0,0.157915]
[1721063602066,0.227,63735.0,63734.0,0.911823]
[1721063602269,0.163,63748.0,63740.0,0.530461]
[1721063602270,0.2271,63741.0,63740.0,0.530461]
[1721063602469,0.3271,63741.0,63740.0,0.530461]
[1721063602871,0.3271,63741.0,63740.0,0.470661]
[1721063603533,0.2281,63741.0,63740.0,0.844235]
[1721063603702,0.2281,63741.0,63740.0,0.530461]
[1721063604042,0.2271,63741.0,63740.0,0.156887]
[1721063604315,0.2271,63741.0,63740.0,0.158887]
[1721063604489,0.2271,63741.0,63740.0,0.472661]
[1721063605568,0.2271,63741.0,63740.0,0.156887]
[1721063605899,0.2271,63741.0,63740.0,0.161887]
[1721063606090,0.2271,63741.0,63740.0,0.156887]
[1721063606499,0.2281,63741.0,63740.0,0.477661]
[1721063606724,0.2281,63741.0,63740.0,0.537461]
[1721063607223,0.001,63741.0,63740.0,1.248209]
[1721063607424,0.001,63741.0,63740.0,1.369709]
[1721063607625,0.001,63741.0,63740.0,1.309709]
[1721063608588,0.2271,63747.0,63746.0,0.784362]
[1721063608910,0.2271,63747.0,63746.0,0.844162]
[1721063609266,0.2271,63747.0,63746.0,0.784362]
[1721063610553,0.2271,63747.0,63746.0,0.778362]
[1721063612243,0.00236353,63760.0,63746.0,0.778362]
[1721063612244,0.2271,63753.0,63746.0,0.316745]
[1721063612500,0.2271,63753.0,63752.0,0.470572]
[1721063612710,0.2271,63753.0,63749.0,0.373249]
[1721063612711,0.2271,63753.0,63750.0,0.15686]
[1721063612966,0.2271,63753.0,63746.0,0.003]
[1721063612967,0.06,63750.0,63746.0,0.003]
[1721063613202,0.2871,63747.0,63746.0,0.003]
[1721063613423,0.2871,63747.0,63734.0,0.000913]
[1721063613424,0.06,63740.0,63734.0,0.000913]
[1721063613632,0.227,63735.0,63734.0,0.000913]
[1721063614015,0.227,63735.0,63734.0,0.157815]
[1721063615105,0.287,63735.0,63734.0,0.000913]
[1721063615625,0.227,63735.0,63734.0,0.000913]
[1721063615879,0.287,63735.0,63734.0,0.000913]
[1721063616143,0.288,63735.0,63734.0,0.002913]
[1721063616392,0.2279,63735.0,63734.0,0.002913]
[1721063616618,0.23026353,63735.0,63734.0,0.002913]
[1721063616884,0.29026353,63735.0,63734.0,0.002913]
[1721063617103,0.2279,63735.0,63734.0,0.002913]
[1721063617331,0.23026353,63735.0,63734.0,0.002913]
[1721063617563,0.2278,63735.0,63734.0,0.002913]
[1721063617981,0.23016353,63735.0,63734.0,0.002913]
[1721063618191,0.39064353,63735.0,63734.0,0.002913]
[1721063618389,0.41128,63735.0,63734.0,0.002913]
[1721063619138,0.4108,63735.0,63734.0,0.002913]
[1721063619364,0.3507,63735.0,63734.0,0.002913]
[1721063620806,0.3277,63735.0,63734.0,0.002913]
[1721063621419,0.61118,63735.0,63734.0,0.002913]
[1721063621622,0.06,63726.0,63721.0,0.156933]
[1721063621822,0.2271,63723.0,63721.0,0.156933]
[1721063622030,0.2271,63723.0,63722.0,0.156931]
[1721063623039,0.2271,63723.0,63721.0,0.156933]
[1721063623245,0.2281,63723.0,63721.0,0.165933]
[1721063623461,0.2281,63723.0,63721.0,0.156933]
[1721063623462,0.2271,63723.0,63721.0,0.156933]
[1721063623860,0.2281,63723.0,63722.0,0.009]
[1721063625002,0.2281,63723.0,63722.0,1.16714]
[1721063625003,0.001,63723.0,63722.0,1.16714]
[1721063625609,0.001,63723.0,63722.0,0.853277]
[1721063625833,0.1,63728.0,63724.0,0.156925]
[1721063626033,0.0999,63728.0,63724.0,0.156925]
[1721063626458,0.0999,63728.0,63726.0,0.156921]
[1721063626664,0.00236353,63735.0,63734.0,0.470706]
[1721063626872,0.2271,63739.0,63735.0,0.0007]
[1721063627279,0.2271,63739.0,63729.0,0.313828]
[1721063627280,0.00236353,63738.0,63733.0,0.156904]
[1721063627458,0.2271,63734.0,63731.0,0.313816]
[1721063627675,0.2271,63734.0,63733.0,0.156904]
[1721063628138,0.2271,63734.0,63733.0,0.530333]
[1721063628339,0.2271,63734.0,63733.0,0.156904]
[1721063628734,0.2271,63734.0,63730.0,0.05962]
[1721063628889,0.2271,63734.0,63731.0,0.0007]
[1721063629272,0.2271,63734.0,63730.0,0.05962]
[1721063629680,0.2271,63734.0,63733.0,0.001]
[1721063630099,0.2271,63734.0,63733.0,0.216524]
[1721063630312,0.2321,63734.0,63733.0,0.845055]
[1721063630748,0.2321,63734.0,63733.0,0.000913]
[1721063631204,0.31518,63734.0,63733.0,0.000913]
[1721063631404,0.3147,63734.0,63733.0,0.000913]
[1721063632555,0.3177,63734.0,63733.0,0.001913]
[1721063632759,0.2351,63734.0,63733.0,0.001913]
[1721063632968,0.2301,63734.0,63733.0,0.000913]
[1721063633191,0.2301,63734.0,63733.0,0.679046]
[1721063633192,0.006,63734.0,63733.0,0.679046]
[1721063633397,0.006,63734.0,63733.0,0.992855]
[1721063633624,0.006,63734.0,63733.0,0.619426]
[1721063633625,0.003,63734.0,63733.0,0.619426]
[1721063633947,0.006,63734.0,63733.0,0.619426]
[1721063634642,0.006,63734.0,63733.0,0.679046]
[1721063634857,0.1,63739.0,63735.0,0.216517]
[1721063635011,0.1,63739.0,63735.0,0.156897]
[1721063636255,0.00236353,63738.0,63735.0,0.156897]
[1721063636670,0.103,63739.0,63735.0,0.156897]
[1721063637183,0.103,63739.0,63733.0,0.462522]
[1721063637184,0.00048,63737.0,63733.0,0.000913]
[1721063637394,0.2271,63734.0,63733.0,0.000913]
[1721063637608,0.2501,63734.0,63733.0,0.000913]
[1721063639208,0.2501,63734.0,63733.0,0.157817]
[1721063639209,0.2271,63734.0,63733.0,0.157817]
[1721063639816,0.2271,63734.0,63733.0,0.000913]
[1721063640023,0.2271,63734.0,63733.0,0.001613]
[1721063640428,0.2271,63734.0,63733.0,0.000913]
[1721063640856,0.2271,63734.0,63733.0,0.001913]
[1721063641524,0.2271,63734.0,63733.0,0.158817]
[1721063641723,0.2271,63734.0,63733.0,0.001913]
[1721063642351,0.2271,63734.0,63733.0,0.000913]
[1721063642774,0.2301,63734.0,63733.0,0.000913]
[1721063643407,0.26999934,63734.0,63733.0,0.001913]
[1721063643642,0.2301,63734.0,63733.0,0.001913]
[1721063643855,0.2301,63734.0,63733.0,0.002013]
[1721063644491,0.2301,63734.0,63729.0,0.0007]
[1721063644492,0.2,63732.0,63729.0,0.0007]
[1721063644720,0.2271,63730.0,63729.0,0.0007]
[1721063644944,0.2271,63730.0,63720.0,0.156935]
[1721063644945,0.00048,63729.0,63720.0,0.156935]
[1721063645176,0.03705017,63728.0,63720.0,0.156935]
[1721063645394,0.03705017,63728.0,63720.0,0.156936]
[1721063645395,0.00048,63726.0,63720.0,0.156936]
[1721063645599,0.023,63727.0,63720.0,0.156936]
[1721063645600,0.03705017,63725.0,63720.0,0.156936]
[1721063645842,0.03705017,63724.0,63720.0,0.156936]
[1721063646060,0.03705017,63723.0,63718.0,0.156939]
[1721063646270,0.03705017,63722.0,63718.0,0.156939]
[1721063646484,0.023,63727.0,63718.0,0.156939]
[1721063646680,0.03823585,63726.0,63718.0,0.156939]
[1721063646890,0.06123585,63725.0,63718.0,0.156939]
[1721063647102,0.03823585,63724.0,63718.0,0.156939]
[1721063647649,0.03823585,63724.0,63723.0,0.784645]
[1721063647870,0.003,63725.0,63724.0,0.530399]
[1721063648066,0.003,63725.0,63724.0,0.992052]
[1721063648273,0.003,63725.0,63724.0,1.305905]
[1721063649008,0.0029,63725.0,63724.0,1.305905]
[1721063649443,0.00236353,63741.0,63731.0,0.05962]
[1721063649580,0.00236353,63738.0,63732.0,0.156904]
[1721063649787,0.1,63741.0,63725.0,0.313848]
[1721063649788,0.00236353,63736.0,63735.0,0.216519]
[1721063650000,0.00236353,63736.0,63735.0,0.844117]
[1721063650194,0.00236353,63739.0,63737.0,0.156893]
[1721063650824,0.023,63740.0,63737.0,0.156893]
[1721063651106,0.03745851,63739.0,63737.0,0.156893]
[1721063651303,0.00236353,63738.0,63737.0,0.156893]
[1721063651508,0.03982204,63738.0,63737.0,0.156893]
[1721063651741,0.03982048,63738.0,63737.0,0.156893]
[1721063651947,0.02536353,63740.0,63738.0,0.15689]
[1721063652154,0.0377089,63739.0,63738.0,0.15689]
[1721063652796,0.0417089,63739.0,63738.0,0.15689]
[1721063652991,0.004,63739.0,63737.0,0.156894]
[1721063653193,0.0401089,63738.0,63737.0,0.156894]
[1721063653721,0.008,63739.0,63738.0,0.530296]
[1721063653876,0.008,63739.0,63738.0,0.654596]
[1721063654117,0.00236353,63755.0,63749.0,0.156864]
[1721063654298,0.00236353,63759.0,63748.0,0.05962]
[1721063654469,0.00236353,63759.0,63751.0,0.15686]
[1721063654863,0.00236353,63759.0,63749.0,0.156864]
[1721063654864,0.03897263,63752.0,63749.0,0.156864]
[1721063655080,0.00083,63752.0,63749.0,0.156864]
[1721063655295,0.00083,63752.0,63747.0,0.313737]
[1721063655511,0.00083,63752.0,63748.0,0.156865]
[1721063656869,0.00236353,63751.0,63748.0,0.156865]
[1721063657812,0.00083,63752.0,63748.0,0.156865]
[1721063658014,0.00048,63751.0,63742.0,0.0814]
[1721063658223,0.00083,63752.0,63741.0,0.156882]
[1721063658224,0.00319353,63752.0,63741.0,0.156882]
[1721063658420,0.023,63751.0,63744.0,0.156876]
[1721063658838,0.023,63751.0,63749.0,0.0001]
[1721063660257,0.025,63751.0,63749.0,0.0001]
[1721063660617,0.30658,63750.0,63749.0,0.0001]
[1721063660830,0.64419833,63750.0,63749.0,0.0001]
[1721063660972,1.03475273,63750.0,63749.0,0.0001]
[1721063661192,1.70841164,63750.0,63749.0,0.0001]
[1721063661374,1.76224495,63750.0,63749.0,0.0001]
[1721063662360,1.41097279,63750.0,63749.0,0.0001]
[1721063662560,1.44888565,63750.0,63749.0,0.0001]
[1721063663565,1.45188565,63750.0,63749.0,0.0001]
[1721063664003,1.44888565,63750.0,63749.0,0.0001]
[1721063664210,1.45588565,63750.0,63749.0,0.0011]
[1721063664832,0.68529865,63750.0,63749.0,0.0011]
[1721063665036,0.58481865,63750.0,63749.0,0.0011]
[1721063665250,0.68981865,63750.0,63749.0,0.0011]
[1721063665583,0.83646534,63750.0,63749.0,0.0011]
[1721063665763,0.63657133,63750.0,63749.0,0.0011]
[1721063665920,0.63157133,63750.0,63749.0,0.0011]
[1721063666364,0.63657133,63750.0,63749.0,0.0011]
[1721063666723,0.83657133,63750.0,63749.0,0.0011]
[1721063666885,1.14725955,63750.0,63749.0,0.0011]
[1721063667087,1.46098455,63750.0,63749.0,0.0011]
[1721063667290,1.62310246,63750.0,63749.0,0.0011]
[1721063667489,1.46098455,63750.0,63749.0,0.0011]
[1721063667690,1.14725955,63750.0,63749.0,0.0011]
[1721063668891,1.10933098,63750.0,63749.0,0.0011]
[1721063669091,1.14765748,63750.0,63749.0,0.0011]
[1721063669314,1.05226822,63750.0,63749.0,0.0011]
[1721063669473,1.14765748,63750.0,63749.0,0.0011]
[1721063669906,1.30977539,63750.0,63749.0,0.0011]
[1721063670122,1.30977539,63750.0,63727.0,0.4863143]
[1721063670123,0.3037,63728.0,63727.0,0.4863143]
[1721063670322,0.3037,63728.0,63717.0,0.000913]
[1721063670323,0.1,63723.0,63717.0,0.000913]
[1721063670525,0.2271,63718.0,63717.0,0.000913]
[1721063670822,0.3269,63718.0,63717.0,0.000913]
[1721063671020,0.3499,63718.0,63717.0,0.000913]
[1721063671236,0.38817069,63718.0,63717.0,0.000913]
[1721063671642,0.3499,63718.0,63717.0,0.000913]
[1721063672017,0.105,63718.0,63717.0,0.472743]
[1721063672216,0.105,63718.0,63717.0,0.471743]
[1721063672217,0.0049,63718.0,63717.0,0.471743]
[1721063672443,0.1049,63718.0,63717.0,0.531363]
[1721063673006,0.1049,63718.0,63717.0,0.471743]
[1721063673222,0.1049,63718.0,63717.0,0.612943]
[1721063673427,0.00306353,63731.0,63730.0,1.3028]
[1721063673649,0.00083,63751.0,63736.0,1.048905]
[1721063673650,0.00306353,63737.0,63736.0,1.048905]
[1721063673880,0.00083,63751.0,63750.0,0.615387]
[1721063674092,0.00083,63751.0,63750.0,0.675007]
[1721063674303,0.00083,63751.0,63750.0,0.615387]
[1721063674477,0.00083,63751.0,63750.0,0.301662]
[1721063675091,0.00083,63751.0,63750.0,0.615387]
[1721063675466,0.00083,63751.0,63750.0,0.992732]
[1721063675845,0.00083,63751.0,63750.0,0.942112]
[1721063675846,0.00183,63751.0,63750.0,0.942112]
[1721063676790,0.00183,63751.0,63750.0,0.624387]
[1721063677003,0.00183,63751.0,63750.0,0.629387]
[1721063677957,0.00183,63751.0,63750.0,0.689007]
[1721063678163,0.00183,63751.0,63750.0,1.002732]
[1721063678618,0.00183,63751.0,63750.0,1.316457]
[1721063679107,0.00083,63751.0,63750.0,1.307457]
[1721063679341,0.00083,63751.0,63750.0,1.367457]
[1721063679541,0.00183,63751.0,63750.0,1.316457]
[1721063679866,0.00183,63751.0,63750.0,1.311457]
[1721063680072,0.00283,63751.0,63750.0,1.382457]
[1721063680275,0.00283,63751.0,63750.0,1.311457]
[1721063680607,0.00283,63751.0,63750.0,1.315457]
[1721063682181,0.00283,63751.0,63750.0,1.329457]
[1721063682583,0.00283,63751.0,63750.0,1.315457]
[1721063682786,0.00283,63751.0,63750.0,1.001732]
[1721063682989,0.00283,63751.0,63750.0,1.015732]
[1721063683632,0.00283,63751.0,63750.0,0.557207]
[1721063684205,0.00283,63751.0,63750.0,0.870932]
[1721063684599,0.00283,63751.0,63750.0,0.557207]
[1721063684802,0.00083,63751.0,63750.0,0.484587]
[1721063685006,0.00083,63751.0,63750.0,0.530207]
[1721063685234,0.00183,63751.0,63750.0,0.857932]
[1721063685635,0.00183,63751.0,63750.0,0.544207]
[1721063685831,0.00083,63751.0,63750.0,0.470587]
[1721063686265,0.00183,63751.0,63750.0,0.544207]
[1721063686701,0.00083,63751.0,63750.0,0.848932]
[1721063686883,0.00083,63751.0,63750.0,0.843932]
[1721063687082,0.00183,63751.0,63750.0,0.857932]
[1721063687465,0.00183,63751.0,63750.0,0.862932]
[1721063688654,0.00183,63751.0,63750.0,0.863032]
[1721063691291,0.00183,63751.0,63750.0,0.549307]
[1721063691697,0.00183,63751.0,63750.0,0.863032]
[1721063691895,0.00183,63751.0,63750.0,0.175962]
[1721063692298,0.00183,63751.0,63750.0,0.549307]
[1721063693828,0.00183,63751.0,63750.0,0.863032]
[1721063695272,0.00183,63751.0,63750.0,0.941532]
[1721063695502,0.00183,63751.0,63750.0,1.002032]
[1721063696593,0.00183,63751.0,63750.0,0.863032]
[1721063698518,0.00183,63751.0,63750.0,0.549307]
[1721063699183,0.00183,63751.0,63750.0,0.863032]
[1721063700562,0.00183,63751.0,63750.0,0.489687]
[1721063700931,0.00183,63751.0,63750.0,0.0191]
[1721063701062,0.00231,63751.0,63750.0,0.0191]
[1721063701273,0.10149561,63751.0,63750.0,0.0191]
[1721063701473,0.20407914,63751.0,63750.0,0.0191]
[1721063701704,0.20407914,63751.0,63750.0,0.175962]
[1721063701904,0.20407914,63751.0,63750.0,0.0191]
[1721063701905,0.16491068,63751.0,63750.0,0.0191]
[1721063702317,0.36618738,63751.0,63750.0,0.0051]
[1721063702588,0.36618738,63751.0,63750.0,0.0121]
[1721063702813,0.43378738,63751.0,63750.0,0.0121]
[1721063703222,0.43378738,63751.0,63750.0,0.0001]
[1721063703223,0.35621,63751.0,63750.0,0.0001]
[1721063703432,0.43240912,63751.0,63750.0,0.0001]
[1721063703648,0.73540912,63751.0,63750.0,0.0001]
[1721063703872,0.97426912,63751.0,63750.0,0.0001]
[1721063704091,1.60170912,63751.0,63750.0,0.0001]
[1721063704347,1.59870912,63751.0,63750.0,0.0001]
[1721063704549,1.60277265,63751.0,63750.0,0.0091]
[1721063704758,1.60577265,63751.0,63750.0,0.0091]
[1721063704963,1.60177265,63751.0,63750.0,0.0001]
[1721063705959,1.29005265,63751.0,63750.0,0.0001]
[1721063706365,1.30584718,63751.0,63750.0,0.0001]
[1721063706539,1.34182932,63751.0,63750.0,0.0001]
[1721063707125,1.34182932,63751.0,63750.0,0.0011]
[1721063707126,0.68224932,63751.0,63750.0,0.0011]
[1721063707326,0.67124932,63751.0,63750.0,0.0001]
[1721063707728,0.67918579,63751.0,63750.0,0.0011]
[1721063707982,0.68118579,63751.0,63750.0,0.0011]
[1721063708395,0.1,63738.0,63725.0,0.156923]
[1721063708595,0.1,63738.0,63718.0,0.142013]
[1721063708596,0.00048,63736.0,63730.0,0.4863143]
[1721063708939,0.00048,63736.0,63721.0,0.313867]
[1721063708940,0.2271,63730.0,63721.0,0.313867]
[1721063709129,0.0990674,63729.0,63722.0,0.15693]
[1721063709331,0.0760674,63728.0,63722.0,0.15693]
[1721063709533,0.06308526,63727.0,63722.0,0.15693]
[1721063709716,0.04038653,63726.0,63722.0,0.15693]
[1721063709931,0.2271,63724.0,63720.0,0.156936]
[1721063710135,0.00048,63721.0,63718.0,0.000913]
[1721063710336,0.26674963,63723.0,63718.0,0.000913]
[1721063710337,0.04038653,63720.0,63718.0,0.000913]
[1721063710550,0.06338653,63719.0,63718.0,0.000913]
[1721063711728,0.06328653,63719.0,63718.0,0.000913]
[1721063711948,0.06324356,63719.0,63718.0,0.001913]
[1721063712715,0.06324658,63719.0,63718.0,0.001913]
[1721063713091,0.06372658,63719.0,63718.0,0.001913]
[1721063713447,0.07176962,63719.0,63718.0,0.001913]
[1721063713660,0.06376962,63719.0,63718.0,0.001913]
[1721063713885,0.07076962,63719.0,63718.0,0.000913]
[1721063714310,0.07076962,63719.0,63718.0,0.003913]
[1721063714716,0.06376962,63719.0,63718.0,0.000913]
[1721063714920,0.07066962,63719.0,63718.0,0.000913]
[1721063715089,0.06466962,63719.0,63718.0,0.000913]
[1721063715698,0.22996962,63719.0,63718.0,0.000913]
[1721063715916,0.16410571,63719.0,63718.0,0.000913]
[1721063716078,0.1238,63719.0,63718.0,0.296054]
[1721063716457,0.1228,63719.0,63718.0,0.296054]
[1721063716661,0.107,63719.0,63718.0,0.609937]
[1721063717253,0.1069,63719.0,63718.0,0.609937]
[1721063717475,0.2271,63724.0,63721.0,0.05962]
[1721063717624,0.2271,63724.0,63718.0,0.139113]
[1721063717625,0.1,63723.0,63722.0,0.156931]
[1721063718014,0.1412,63736.0,63722.0,0.156931]
[1721063718015,0.00306353,63740.0,63727.0,0.05962]
[1721063718264,0.1,63746.0,63718.0,0.002913]
[1721063718265,0.04022707,63739.0,63734.0,0.12402]
[1721063718464,0.23016353,63741.0,63734.0,0.0644]
[1721063718465,0.2271,63735.0,63734.0,0.0644]
[1721063718864,0.2271,63735.0,63734.0,0.221302]
[1721063719219,0.2271,63735.0,63734.0,0.594726]
[1721063720033,0.3271,63735.0,63734.0,0.594726]
[1721063720545,0.005,63740.0,63734.0,0.594726]
[1721063720546,0.005,63740.0,63739.0,0.216509]
[1721063721123,0.005,63740.0,63739.0,0.156889]
[1721063721275,0.2271,63741.0,63740.0,0.156887]
[1721063721646,0.2271,63741.0,63740.0,0.216507]
[1721063721852,0.2271,63741.0,63740.0,0.156887]
[1721063722259,0.3271,63741.0,63740.0,0.156887]
[1721063722937,0.3271,63741.0,63739.0,0.013]
[1721063723142,0.20711591,63740.0,63739.0,0.013]
[1721063723543,0.20405238,63740.0,63739.0,0.013]
[1721063723911,0.123,63740.0,63739.0,0.013]
[1721063724336,0.123,63740.0,63735.0,0.156898]
[1721063724549,0.123,63740.0,63739.0,0.004]
[1721063724750,0.67223822,63740.0,63739.0,0.004]
[1721063724951,0.47530175,63740.0,63739.0,0.004]
[1721063725402,0.47530175,63740.0,63729.0,0.05962]
[1721063725403,0.41280625,63740.0,63729.0,0.05962]
[1721063725695,0.2271,63736.0,63735.0,0.017]
[1721063725825,0.2271,63736.0,63731.0,0.0625]
[1721063725826,0.3501,63736.0,63734.0,0.156901]
[1721063726030,0.123,63735.0,63734.0,0.156901]
[1721063726290,0.123,63735.0,63734.0,0.216521]
[1721063726291,0.1,63735.0,63734.0,0.216521]
[1721063726431,0.001,63740.0,63737.0,0.05962]
[1721063726632,0.001,63740.0,63737.0,0.216514]
[1721063726903,0.001,63740.0,63738.0,0.156891]
[1721063727111,0.001,63740.0,63739.0,0.001]
[1721063727563,0.04042198,63740.0,63739.0,0.001]
[1721063727761,0.04042198,63740.0,63736.0,0.156894]
[1721063727762,0.06342198,63740.0,63736.0,0.156894]
[1721063727966,0.04042198,63739.0,63737.0,0.001]
[1721063728162,0.00306353,63738.0,63737.0,0.001]
[1721063728453,0.023,63738.0,63737.0,0.216514]
[1721063728626,0.023,63741.0,63740.0,0.05962]
[1721063728627,0.02606353,63741.0,63740.0,0.05962]
[1721063728749,0.023,63741.0,63740.0,0.05962]
[1721063728958,0.023,63741.0,63740.0,0.156887]
[1721063729173,0.023,63741.0,63738.0,0.05]
[1721063729174,0.14443326,63741.0,63738.0,0.05]
[1721063729391,0.14344441,63740.0,63738.0,0.05]
[1721063729601,0.06338088,63739.0,63738.0,0.05]
[1721063730006,0.06338088,63739.0,63738.0,0.206892]
[1721063730432,0.06386088,63739.0,63738.0,0.05]
[1721063730642,0.12606088,63739.0,63738.0,0.05]
[1721063730893,0.22606088,63739.0,63738.0,0.05]
[1721063731227,0.22606088,63739.0,63738.0,0.052]
[1721063731628,0.22605618,63739.0,63738.0,0.052]
[1721063732243,0.2641102,63739.0,63738.0,0.05]
[1721063732444,0.3392102,63739.0,63738.0,0.04972]
[1721063732643,0.3402102,63739.0,63738.0,0.06072]
[1721063733465,0.3392102,63739.0,63738.0,0.04972]
[1721063733685,0.3402102,63739.0,63738.0,0.04972]
[1721063733878,0.3402102,63739.0,63738.0,0.05882]
[1721063734086,0.2780102,63739.0,63738.0,0.05882]
[1721063734286,0.28107373,63739.0,63738.0,0.06082]
[1721063734508,0.20549373,63739.0,63738.0,0.06082]
[1721063734713,0.2024302,63739.0,63738.0,0.05882]
[1721063734910,0.16528707,63739.0,63738.0,0.05882]
[1721063735112,0.06528707,63739.0,63738.0,0.05882]
[1721063735313,0.06428707,63739.0,63738.0,0.04982]
[1721063735720,0.06528707,63739.0,63738.0,0.06082]